bitfinex/quotes_BTCUSD_20250723
["timestamp","ask_amount","ask_price","bid_price","bid_amount"]
[1753276800453,0.00847335,118010.0,118000.0,0.18643738]
[1753276800672,0.01506383,118030.0,118000.0,0.96760449]
[1753276800900,0.04047957,118030.0,118010.0,0.20655048]
[1753276801144,0.00014772,118030.0,118020.0,0.70526129]
[1753276801362,0.00861956,118030.0,118020.0,0.33964185]
[1753276801570,0.00861956,118030.0,118020.0,0.331169]
[1753276801789,0.01709147,118030.0,118020.0,0.331169]
[1753276802008,0.00014772,118030.0,118020.0,0.34811477]
[1753276802242,0.00014772,118030.0,118020.0,0.3565874]
[1753276802475,0.00014772,118030.0,118020.0,0.75838323]
[1753276802914,0.00014772,118030.0,118020.0,0.40123642]
[1753276803132,0.00014772,118030.0,118020.0,0.75938323]
[1753276803548,0.00014772,118030.0,118020.0,0.76244323]
[1753276804635,0.00014772,118030.0,118020.0,0.81731834]
[1753276804845,0.00014772,118030.0,118020.0,0.90179564]
[1753276805935,0.00014772,118030.0,118020.0,0.90079564]
[1753276806414,0.00014772,118030.0,118020.0,1.24079564]
[1753276806629,0.00014772,118030.0,118020.0,0.88364883]
[1753276806855,0.00014772,118030.0,118020.0,1.24079564]
[1753276807293,0.00014772,118030.0,118020.0,1.21538053]
[1753276807505,0.00014772,118030.0,118020.0,0.85823372]
[1753276807722,0.00014772,118030.0,118020.0,1.21538053]
[1753276808379,0.00014772,118030.0,118020.0,1.21738053]
[1753276808812,0.00014772,118030.0,118020.0,1.21638053]
[1753276809249,0.00014772,118030.0,118020.0,0.85923372]
[1753276809467,0.00014772,118030.0,118020.0,1.21638053]
[1753276809685,0.00014772,118030.0,118020.0,0.86123372]
[1753276809881,0.00014772,118030.0,118020.0,1.21838053]
[1753276810380,0.00014772,118030.0,118020.0,0.67984886]
[1753276810613,0.0340361,118030.0,118020.0,0.68832178]
[1753276810835,0.00861949,118030.0,118020.0,1.09181392]
[1753276811053,0.08014772,118030.0,118020.0,1.20695122]
[1753276811260,0.08014772,118030.0,118020.0,1.22440024]
[1753276811495,0.00014772,118030.0,118020.0,1.07612024]
[1753276811721,0.00014772,118030.0,118020.0,1.22464024]
[1753276814062,0.0340361,118030.0,118020.0,0.86429313]
[1753276814273,0.01709148,118030.0,118020.0,1.21591899]
[1753276814509,0.2119566,118030.0,118020.0,0.52953632]
[1753276814710,0.22668987,118030.0,118020.0,0.39663526]
[1753276814918,0.18325858,118030.0,118020.0,0.51726526]
[1753276815755,0.26325858,118030.0,118020.0,0.51726526]
[1753276816204,0.26325858,118030.0,118020.0,0.17730526]
[1753276816413,0.31895858,118030.0,118020.0,0.17730526]
[1753276817677,0.31895858,118030.0,118020.0,0.001]
[1753276817678,1.38825257,118030.0,118020.0,0.001]
[1753276818122,1.03110576,118030.0,118020.0,0.001]
[1753276818579,0.55343588,118030.0,118020.0,0.001]
[1753276818800,0.40343588,118030.0,118020.0,0.14928]
[1753276819022,0.37603588,118030.0,118020.0,0.14928]
[1753276819233,0.77603588,118030.0,118020.0,0.14828]
[1753276819443,0.77603588,118030.0,118020.0,0.001]
[1753276819656,0.77603588,118030.0,118020.0,0.14924]
[1753276819859,0.77603588,118030.0,118020.0,0.14824]
[1753276820311,0.69255858,118030.0,118020.0,0.32617586]
[1753276820525,0.69255858,118030.0,118020.0,0.71090107]
[1753276820526,0.09809133,118030.0,118020.0,0.71090107]
[1753276820738,0.09809133,118030.0,118020.0,0.78458937]
[1753276820941,0.08014772,118030.0,118020.0,0.78458937]
[1753276821150,0.09061956,118030.0,118020.0,0.78458937]
[1753276821370,0.08214772,118030.0,118020.0,0.78458937]
[1753276821826,0.08214772,118030.0,118020.0,0.81368937]
[1753276822035,0.08214772,118030.0,118020.0,0.89816667]
[1753276822262,0.09909148,118030.0,118020.0,0.86906667]
[1753276822463,0.10756361,118030.0,118020.0,0.85212126]
[1753276822674,0.11603581,118030.0,118020.0,0.86600667]
[1753276822915,0.12250808,118030.0,118020.0,0.50885986]
[1753276823128,0.27702276,118030.0,118020.0,0.38881]
[1753276823551,0.10757432,118030.0,118020.0,0.3972827]
[1753276823760,0.28549518,118030.0,118020.0,0.19554208]
[1753276823972,0.26972085,118030.0,118020.0,0.02607928]
[1753276824188,0.26972085,118030.0,118020.0,0.17391928]
[1753276824189,0.32952085,118030.0,118020.0,0.17391928]
[1753276825264,0.72952085,118030.0,118020.0,0.17391928]
[1753276826358,0.72952085,118030.0,118020.0,0.17291928]
[1753276827002,0.73052085,118030.0,118020.0,0.14784]
[1753276827198,0.73258085,118030.0,118020.0,0.14784]
[1753276828488,0.09809205,118030.0,118020.0,0.68716088]
[1753276828699,0.09809162,118030.0,118020.0,0.710461]
[1753276828913,0.09809162,118030.0,118020.0,0.34484156]
[1753276829145,0.50656389,118030.0,118020.0,0.34484156]
[1753276829615,0.08114772,118030.0,118020.0,0.36178668]
[1753276829817,0.08114772,118030.0,118020.0,0.88060981]
[1753276830044,0.08114772,118030.0,118020.0,1.51950981]
[1753276830247,0.00014772,118030.0,118020.0,1.51950981]
[1753276830887,0.00014772,118030.0,118020.0,1.22060981]
[1753276831092,0.00014772,118030.0,118020.0,1.22047568]
[1753276831314,0.00014772,118030.0,118020.0,1.2213932]
[1753276831522,0.00014772,118030.0,118020.0,1.22133059]
[1753276831730,0.00014772,118030.0,118020.0,1.22126612]
[1753276831955,0.00014772,118030.0,118020.0,1.22119042]
[1753276832127,0.00014772,118030.0,118020.0,1.24664042]
[1753276832338,0.00014772,118030.0,118020.0,1.24656884]
[1753276832557,0.00014772,118030.0,118020.0,1.24648492]
[1753276833634,0.00014772,118030.0,118020.0,1.24548492]
[1753276834072,0.00014772,118030.0,118020.0,1.29848492]
[1753276835136,0.00014772,118030.0,118020.0,1.30148492]
[1753276841276,0.08436577,118080.0,118070.0,0.18632991]
[1753276841483,0.00526791,118080.0,118070.0,0.70721502]
[1753276842332,0.00526791,118080.0,118070.0,0.35006821]
[1753276842791,0.00014791,118080.0,118070.0,0.35218821]
[1753276843006,0.00214791,118080.0,118070.0,0.70933502]
[1753276843436,0.00014791,118080.0,118070.0,0.72678404]
[1753276843649,0.00014791,118080.0,118070.0,0.84461134]
[1753276843856,0.00014791,118080.0,118070.0,0.87371134]
[1753276844285,0.00014791,118080.0,118070.0,0.87471134]
[1753276844496,0.00014791,118080.0,118070.0,0.51746088]
[1753276844726,0.04183609,118080.0,118070.0,0.35080456]
[1753276844968,0.02220435,118080.0,118070.0,0.35292456]
[1753276845181,0.00526791,118080.0,118070.0,0.35292456]
[1753276845398,0.00014791,118080.0,118070.0,0.79354867]
[1753276845633,0.00114791,118080.0,118070.0,0.84049769]
[1753276846072,0.00114791,118080.0,118070.0,0.84344769]
[1753276846916,0.00114791,118080.0,118070.0,0.82599867]
[1753276847360,0.00961617,118080.0,118070.0,0.43640186]
[1753276847587,0.0201445,118080.0,118070.0,0.64023552]
[1753276847797,0.01473617,118080.0,118070.0,0.64870456]
[1753276848008,0.02320457,118080.0,118070.0,0.64870456]
[1753276848206,0.01473609,118080.0,118070.0,0.35192456]
[1753276848445,0.00320791,118080.0,118070.0,0.35192456]
[1753276848658,0.00114791,118080.0,118070.0,0.70907137]
[1753276848863,0.00114791,118080.0,118070.0,0.82384867]
[1753276850307,0.00114791,118080.0,118070.0,0.79354867]
[1753276852330,0.01167609,118080.0,118070.0,0.43640186]
[1753276852570,0.06107289,118080.0,118070.0,0.34980456]
[1753276852776,0.07303816,118070.0,118060.0,0.22872757]
[1753276852995,0.07303816,118070.0,118060.0,0.45952487]
[1753276852996,0.07815809,118070.0,118060.0,0.45952487]
[1753276853233,0.26448785,118070.0,118060.0,0.34113581]
[1753276853431,0.26448785,118070.0,118060.0,0.34960572]
[1753276853635,0.09509682,118070.0,118060.0,0.35807505]
[1753276853835,0.08662742,118070.0,118060.0,0.35807505]
[1753276854014,0.08662742,118070.0,118060.0,0.35907505]
[1753276854491,0.07815809,118070.0,118060.0,0.35907505]
[1753276854702,0.06122,118070.0,118060.0,0.35907505]
[1753276854941,0.02924791,118080.0,118070.0,0.19479881]
[1753276855149,0.00014791,118080.0,118070.0,0.55406562]
[1753276855351,0.00014791,118080.0,118070.0,0.58416562]
[1753276855554,0.00014791,118080.0,118070.0,0.66864292]
[1753276855759,0.00014791,118080.0,118070.0,0.67159292]
[1753276856171,0.00014791,118080.0,118070.0,0.31444611]
[1753276856386,0.00014791,118080.0,118070.0,0.69703192]
[1753276857215,0.00114791,118080.0,118070.0,0.69703192]
[1753276857424,0.00114791,118080.0,118070.0,0.66693192]
[1753276857661,0.00114791,118080.0,118070.0,0.30683511]
[1753276857854,0.00114791,118080.0,118070.0,0.66398192]
[1753276858416,0.00114791,118080.0,118070.0,0.69388192]
[1753276858843,0.00114791,118080.0,118070.0,0.66398192]
[1753276859618,0.00014791,118080.0,118070.0,0.66398192]
[1753276860244,0.00014791,118080.0,118070.0,0.65551288]
[1753276860451,0.25202204,118080.0,118070.0,0.025439]
[1753276860650,0.25521574,118060.0,118050.0,0.16940684]
[1753276860856,0.26884565,118060.0,118050.0,0.3579923]
[1753276861096,0.26884565,118060.0,118050.0,0.34105084]
[1753276861337,0.24987576,118060.0,118050.0,0.32409071]
[1753276861544,0.24987576,118060.0,118050.0,0.34950287]
[1753276861746,0.25834567,118060.0,118050.0,0.34950287]
[1753276861962,0.26681536,118060.0,118050.0,0.34950287]
[1753276862174,0.25834567,118060.0,118050.0,0.33256162]
[1753276862389,0.24987576,118060.0,118050.0,0.15467098]
[1753276862599,0.23293538,118060.0,118050.0,0.1462]
[1753276862809,0.2414055,118060.0,118050.0,0.33256134]
[1753276863021,0.2414055,118060.0,118050.0,0.34103203]
[1753276863235,0.0804696,118060.0,118050.0,0.35797306]
[1753276863452,0.05963958,118060.0,118050.0,0.35797306]
[1753276863662,0.01259969,118060.0,118050.0,0.35797306]
[1753276863886,0.01259969,118060.0,118050.0,0.71511987]
[1753276863887,0.001,118060.0,118050.0,0.71511987]
[1753276864121,0.00946969,118060.0,118050.0,0.71511987]
[1753276864378,0.1958151,118060.0,118050.0,0.70664939]
[1753276864611,0.1840355,118060.0,118050.0,0.1462]
[1753276864808,0.31687881,118060.0,118050.0,0.1462]
[1753276865254,0.31687881,118060.0,118040.0,0.24522181]
[1753276865255,0.16941973,118050.0,118040.0,0.24522181]
[1753276865521,0.24265057,118050.0,118040.0,0.171566]
[1753276865766,0.02541617,118030.0,118020.0,0.53488134]
[1753276866002,0.20333689,118030.0,118020.0,0.75704601]
[1753276866202,0.0169439,118030.0,118020.0,0.77399134]
[1753276866413,0.02541617,118030.0,118020.0,0.79933426]
[1753276866625,0.20333703,118030.0,118020.0,0.79086163]
[1753276866841,0.00847184,118030.0,118020.0,1.15639252]
[1753276867047,0.02541617,118030.0,118020.0,1.15629278]
[1753276867254,0.01694383,118030.0,118020.0,1.15621377]
[1753276867463,0.00847184,118030.0,118020.0,1.15821377]
[1753276867648,0.00847184,118030.0,118020.0,1.1561332]
[1753276867906,0.01694375,118030.0,118020.0,1.15604813]
[1753276868127,0.21940727,118040.0,118030.0,0.17792071]
[1753276868356,0.21940727,118040.0,118030.0,0.17784989]
[1753276868579,0.21940727,118040.0,118030.0,0.18621451]
[1753276868791,0.21940727,118040.0,118030.0,0.18611762]
[1753276869001,0.04997275,118040.0,118030.0,0.18611762]
[1753276869229,0.04150105,118040.0,118030.0,0.20297771]
[1753276869451,0.48511172,118050.0,118040.0,0.19476292]
[1753276869702,0.49566185,118050.0,118040.0,0.34927412]
[1753276869934,0.40207929,118050.0,118040.0,0.35138412]
[1753276870147,0.40207929,118050.0,118040.0,0.70853093]
[1753276870148,4.929e-05,118050.0,118040.0,0.70853093]
[1753276870361,4.929e-05,118050.0,118040.0,0.74161093]
[1753276870585,4.929e-05,118050.0,118040.0,0.82608823]
[1753276871021,0.00104929,118050.0,118040.0,0.82608823]
[1753276871247,0.00104929,118050.0,118040.0,0.79618823]
[1753276871462,4.929e-05,118050.0,118040.0,0.79300823]
[1753276872342,4.929e-05,118050.0,118040.0,0.43586142]
[1753276872579,0.0085197,118050.0,118040.0,0.79300823]
[1753276872797,0.00851963,118050.0,118040.0,0.79400823]
[1753276873016,0.01699018,118050.0,118040.0,0.43686142]
[1753276873237,0.00207929,118050.0,118040.0,0.79400823]
[1753276873462,0.00207929,118050.0,118040.0,0.79500823]
[1753276873675,0.01054963,118050.0,118040.0,0.79500823]
[1753276874147,0.00207929,118050.0,118040.0,0.79500823]
[1753276874578,0.00207929,118050.0,118040.0,0.43786142]
[1753276875950,4.929e-05,118050.0,118040.0,0.82045423]
[1753276876386,4.929e-05,118050.0,118040.0,0.85223423]
[1753276877673,0.00207929,118050.0,118040.0,0.46306742]
[1753276878502,0.00207929,118050.0,118040.0,0.82021423]
[1753276878719,4.929e-05,118050.0,118040.0,0.82021423]
[1753276882946,4.929e-05,118050.0,118040.0,0.85249423]
[1753276883195,4.929e-05,118050.0,118040.0,0.46624742]
[1753276883393,4.929e-05,118050.0,118040.0,0.82021423]
[1753276884478,4.929e-05,118050.0,118040.0,0.87969423]
[1753276884684,4.929e-05,118050.0,118040.0,1.21969423]
[1753276887378,4.929e-05,118050.0,118040.0,0.86254742]
[1753276887585,4.929e-05,118050.0,118040.0,1.21969423]
[1753276887803,4.929e-05,118050.0,118040.0,0.80306742]
[1753276888011,4.929e-05,118050.0,118040.0,1.16021423]
[1753276888630,4.929e-05,118050.0,118040.0,1.19194423]
[1753276889042,4.929e-05,118050.0,118040.0,1.22174423]
[1753276892591,0.00851963,118050.0,118040.0,1.22174423]
[1753276892799,4.929e-05,118050.0,118040.0,1.19194423]
[1753276893309,4.929e-05,118050.0,118040.0,1.16649823]
[1753276893790,4.929e-05,118050.0,118040.0,1.16356823]
[1753276894272,4.929e-05,118050.0,118040.0,1.16649823]
[1753276895895,4.929e-05,118050.0,118040.0,1.19379823]
[1753276896614,4.929e-05,118050.0,118040.0,1.26124725]
[1753276897103,4.929e-05,118050.0,118040.0,1.61839406]
[1753276897614,4.929e-05,118050.0,118040.0,1.26024725]
[1753276897854,4.929e-05,118050.0,118040.0,1.11544725]
[1753276898099,4.929e-05,118050.0,118040.0,1.26056725]
[1753276898349,4.929e-05,118050.0,118040.0,1.20956725]
[1753276898595,4.929e-05,118050.0,118040.0,1.13501823]
[1753276898836,4.929e-05,118050.0,118040.0,1.14108823]
[1753276899081,4.929e-05,118050.0,118040.0,1.13908823]
[1753276899320,4.929e-05,118050.0,118040.0,0.62771142]
[1753276899321,0.05110018,118050.0,118040.0,0.62771142]
[1753276899566,0.09510464,118050.0,118040.0,0.77883142]
[1753276899810,0.26452437,118050.0,118040.0,0.77036022]
[1753276900052,0.25605396,118050.0,118040.0,0.31141166]
[1753276900301,0.24758348,118050.0,118040.0,0.30294003]
[1753276900534,0.07816332,118050.0,118040.0,0.32835427]
[1753276900769,0.15816332,118050.0,118040.0,0.32235427]
[1753276901002,0.16663409,118050.0,118040.0,0.32635427]
[1753276901232,0.15816332,118050.0,118040.0,0.32635427]
[1753276901469,0.16663409,118050.0,118040.0,0.32235427]
[1753276901670,0.16663401,118050.0,118040.0,0.32235427]
[1753276901951,0.1496927,118050.0,118040.0,0.32235427]
[1753276902185,0.15816325,118050.0,118040.0,0.32235427]
[1753276902420,0.17510478,118050.0,118040.0,0.32235427]
[1753276902656,0.3360541,118050.0,118040.0,0.31388307]
[1753276903380,0.32758355,118050.0,118040.0,0.31388307]
[1753276903869,0.14969277,118050.0,118040.0,0.32235427]
[1753276904350,0.15816339,118050.0,118040.0,0.32235427]
[1753276904822,0.14969277,118050.0,118040.0,0.32235427]
[1753276905303,0.14122229,118050.0,118040.0,0.32235427]
[1753276905543,0.1496927,118050.0,118040.0,0.32235427]
[1753276906186,0.15816332,118050.0,118040.0,0.32235427]
[1753276906423,0.1496927,118050.0,118040.0,0.32235427]
[1753276906663,0.15816318,118050.0,118040.0,0.32235427]
[1753276906893,0.1496927,118050.0,118040.0,0.32235427]
[1753276907150,0.06122229,118050.0,118040.0,0.32235427]
[1753276907396,0.43284,118060.0,118050.0,0.19483181]
[1753276907649,0.06274,118070.0,118060.0,0.19481531]
[1753276907905,0.0289,118080.0,118070.0,0.19479881]
[1753276908127,0.00217,118080.0,118070.0,0.19695881]
[1753276908643,0.02757505,118080.0,118070.0,0.19695881]
[1753276908882,0.10757498,118080.0,118070.0,0.19695881]
[1753276909119,0.11081498,118080.0,118070.0,0.19695881]
[1753276909360,0.11081491,118080.0,118070.0,0.19479881]
[1753276909598,0.11181491,118080.0,118070.0,0.19479881]
[1753276909839,0.09047661,118070.0,118060.0,0.19481531]
[1753276910082,0.09264661,118070.0,118060.0,0.33989531]
[1753276910317,0.09588661,118070.0,118060.0,0.33989538]
[1753276910558,0.07894802,118070.0,118060.0,0.34836514]
[1753276910814,0.07894794,118070.0,118060.0,0.34836514]
[1753276911295,0.0704789,118070.0,118060.0,0.34836514]
[1753276911535,0.07894794,118070.0,118060.0,0.34836514]
[1753276912017,0.08741713,118070.0,118060.0,0.34836514]
[1753276912539,0.09588639,118070.0,118060.0,0.34836514]
[1753276912797,0.26527735,118070.0,118060.0,0.32295557]
[1753276913060,0.26527785,118070.0,118060.0,0.33142555]
[1753276913314,0.09588682,118070.0,118060.0,0.33989531]
[1753276913665,0.09588682,118070.0,118060.0,0.31448538]
[1753276913666,0.28540564,118070.0,118060.0,0.31448538]
[1753276913908,0.24833998,118070.0,118060.0,0.33142583]
[1753276914149,0.24833998,118070.0,118060.0,0.33989588]
[1753276914410,0.07894859,118070.0,118060.0,0.35683562]
[1753276915124,0.07994816,118070.0,118060.0,0.35683562]
[1753276915591,0.08941749,118070.0,118060.0,0.35683562]
[1753276916083,0.26727792,118070.0,118060.0,0.35683577]
[1753276916568,0.34328625,118070.0,118060.0,0.35683577]
[1753276916739,0.25880895,118070.0,118060.0,0.35683577]
[1753276917085,0.25880895,118070.0,118060.0,0.35683527]
[1753276917326,0.25880895,118070.0,118060.0,0.34836551]
[1753276917327,0.2672785,118070.0,118060.0,0.34836551]
[1753276917554,0.08094852,118070.0,118060.0,0.35683527]
[1753276917795,0.26727807,118070.0,118060.0,0.34836551]
[1753276918047,0.19481531,118060.0,118050.0,0.24551825]
[1753276918321,0.25520531,118060.0,118050.0,0.33140162]
[1753276918626,0.24673555,118060.0,118050.0,0.14504]
[1753276919528,0.07733017,118060.0,118050.0,0.31445973]
[1753276919784,0.04893017,118060.0,118050.0,0.33987181]
[1753276920026,0.25537233,118060.0,118050.0,0.34834229]
[1753276920271,0.61442991,118070.0,118060.0,0.17787557]
[1753276920532,0.61442991,118070.0,118050.0,0.29714484]
[1753276920533,0.18634548,118060.0,118050.0,0.29714484]
[1753276920772,0.18849548,118060.0,118050.0,0.48350639]
[1753276921260,0.0200901,118060.0,118050.0,0.50044756]
[1753276921498,0.02008967,118060.0,118050.0,0.50248756]
[1753276921733,0.001,118060.0,118050.0,0.50248756]
[1753276921986,0.002,118060.0,118050.0,1.20262437]
[1753276922225,0.002,118060.0,118050.0,1.25882437]
[1753276923190,0.002,118060.0,118050.0,1.30882437]
[1753276924143,0.001,118060.0,118050.0,1.30882437]
[1753276924384,0.62500714,118090.0,118080.0,0.18631385]
[1753276924617,0.47617362,118090.0,118080.0,0.33978218]
[1753276924849,0.49197267,118090.0,118080.0,0.33978218]
[1753276925098,0.48350463,118090.0,118080.0,0.33978218]
[1753276925570,0.4919721,118090.0,118080.0,0.33978218]
[1753276925828,0.66980242,118090.0,118080.0,0.33978218]
[1753276926056,0.50244007,118090.0,118080.0,0.33978218]
[1753276926321,0.67180292,118090.0,118080.0,0.33131385]
[1753276926576,0.50244057,118090.0,118080.0,0.33978225]
[1753276927060,0.00846818,118080.0,118070.0,0.17784733]
[1753276927260,0.01693859,118070.0,118060.0,0.19481524]
[1753276927486,0.08669807,118070.0,118060.0,0.348285]
[1753276927937,0.07822859,118070.0,118060.0,0.348285]
[1753276928163,0.1114586,118070.0,118060.0,0.348285]
[1753276928385,0.10298912,118070.0,118060.0,0.348285]
[1753276928806,0.50298869,118070.0,118060.0,0.348285]
[1753276929035,0.50298862,118070.0,118060.0,0.348285]
[1753276929500,0.5497589,118070.0,118060.0,0.348285]
[1753276929740,0.55822794,118070.0,118060.0,0.348285]
[1753276930452,0.5497589,118070.0,118060.0,0.348285]
[1753276930693,0.48,118070.0,118060.0,0.79194911]
[1753276931188,0.08,118070.0,118060.0,0.79194911]
[1753276931448,0.08,118070.0,118060.0,0.79493911]
[1753276932380,0.08,118070.0,118060.0,0.4348023]
[1753276933584,0.09253821,118070.0,118060.0,0.4348023]
[1753276934047,0.08,118070.0,118060.0,0.4348023]
[1753276937278,0.0884689,118070.0,118060.0,0.4348023]
[1753276937484,0.08,118070.0,118060.0,0.4348023]
[1753276938335,0.08846897,118070.0,118060.0,0.4348023]
[1753276938750,0.33488859,118070.0,118060.0,0.32279557]
[1753276938970,0.4104985,118070.0,118060.0,0.33126569]
[1753276939187,0.40202982,118070.0,118060.0,0.14492]
[1753276939395,0.06336991,118060.0,118050.0,0.19483203]
[1753276939615,0.25186567,118060.0,118050.0,0.33128148]
[1753276939820,0.24643576,118060.0,118050.0,0.14492]
[1753276940026,0.24643576,118060.0,118040.0,0.50029073]
[1753276940217,0.24643576,118060.0,118040.0,0.49181981]
[1753276940218,0.06541084,118050.0,118040.0,0.49181981]
[1753276940427,0.06541084,118050.0,118040.0,0.65368285]
[1753276940428,0.24545155,118050.0,118040.0,0.65368285]
[1753276940648,0.25392232,118050.0,118040.0,0.64521151]
[1753276940849,0.25392232,118050.0,118040.0,0.32282557]
[1753276941102,0.25392232,118050.0,118040.0,0.33129735]
[1753276941302,0.24545155,118050.0,118040.0,0.14492]
[1753276941432,0.29275259,118050.0,118040.0,0.14492]
[1753276941852,0.29275259,118050.0,118040.0,0.31435409]
[1753276942057,0.29275259,118050.0,118040.0,0.14492]
[1753276942442,0.29275259,118050.0,118040.0,0.33129728]
[1753276942665,0.29275259,118050.0,118040.0,0.14492]
[1753276943098,0.29275259,118050.0,118040.0,0.31435409]
[1753276943312,0.29375259,118050.0,118040.0,0.31435409]
[1753276943522,0.28528175,118050.0,118040.0,0.14492]
[1753276943727,0.28628175,118050.0,118040.0,0.14492]
[1753276944003,0.68628175,118050.0,118040.0,0.14492]
[1753276945949,0.63898071,118050.0,118040.0,0.14492]
[1753276950163,0.63898071,118050.0,118040.0,0.32282579]
[1753276950619,0.63898071,118050.0,118040.0,0.33976898]
[1753276951768,0.63898071,118050.0,118040.0,0.1533917]
[1753276951985,0.63050973,118050.0,118040.0,0.14492]
[1753276952193,0.71498703,118050.0,118040.0,0.14492]
[1753276952924,0.71498703,118050.0,118040.0,0.31435409]
[1753276953136,0.71498703,118050.0,118040.0,0.32282572]
[1753276953354,0.63050973,118050.0,118040.0,0.32282572]
[1753276955566,0.41047034,118050.0,118040.0,0.71583419]
[1753276955850,0.402,118050.0,118040.0,0.81508173]
[1753276956316,0.402,118050.0,118040.0,0.89955903]
[1753276956782,0.402,118050.0,118040.0,0.92855903]
[1753276956998,0.402,118050.0,118040.0,1.22745903]
[1753276957243,0.002,118050.0,118040.0,1.22745903]
[1753276958510,0.002,118050.0,118040.0,1.93299341]
[1753276958944,0.002,118050.0,118040.0,1.56745903]
[1753276961199,0.002,118050.0,118040.0,1.49983149]
[1753276961937,0.02421103,118050.0,118040.0,1.35267419]
[1753276962149,0.04115264,118050.0,118040.0,1.35267419]
[1753276962581,0.22213148,118050.0,118040.0,0.2989]
[1753276962797,0.25093148,118050.0,118040.0,0.44366]
[1753276963040,0.24246064,118050.0,118040.0,0.31419409]
[1753276963475,0.24246064,118050.0,118040.0,0.14476]
[1753276963897,0.25940231,118050.0,118040.0,0.33113699]
[1753276964113,0.25940231,118050.0,118040.0,0.70514264]
[1753276964361,0.25940231,118050.0,118040.0,0.69667137]
[1753276964602,0.25940231,118050.0,118040.0,0.14476]
[1753276964823,0.24246071,118050.0,118040.0,0.14476]
[1753276965526,0.24246071,118050.0,118040.0,0.32266572]
[1753276965770,0.18516071,118050.0,118040.0,0.33113713]
[1753276965949,0.01261055,118050.0,118040.0,0.71567398]
[1753276966184,0.0380222,118050.0,118040.0,0.71567398]
[1753276966404,0.01261034,118050.0,118040.0,0.71567398]
[1753276966619,0.01261041,118050.0,118040.0,0.71567398]
[1753276966840,0.002,118050.0,118040.0,0.74424098]
[1753276967088,0.01047034,118050.0,118040.0,0.77064098]
[1753276967743,0.01894075,118050.0,118040.0,0.77064098]
[1753276967964,0.01894075,118050.0,118040.0,0.85511828]
[1753276968192,0.01047034,118050.0,118040.0,0.85511828]
[1753276968403,0.01894082,118050.0,118040.0,0.85511828]
[1753276968619,0.01047034,118050.0,118040.0,0.85511828]
[1753276968839,0.01047034,118050.0,118040.0,1.15401828]
[1753276969064,0.01894082,118050.0,118040.0,1.15401828]
[1753276969291,0.01047034,118050.0,118040.0,1.15401828]
[1753276969559,0.002,118050.0,118040.0,1.15401828]
[1753276969785,0.01894089,118050.0,118040.0,1.15401828]
[1753276970229,0.01047034,118050.0,118040.0,0.7884839]
[1753276970442,0.01894082,118050.0,118040.0,1.15401828]
[1753276970665,0.02741144,118050.0,118040.0,1.15401828]
[1753276971091,0.03588221,118050.0,118040.0,1.12761828]
[1753276971316,0.03588221,118050.0,118040.0,0.7589639]
[1753276971540,0.04649312,118050.0,118040.0,1.12449828]
[1753276971755,0.06090699,118050.0,118040.0,1.12449828]
[1753276971961,0.03802221,118050.0,118040.0,1.12449828]
[1753276972250,0.04649305,118050.0,118040.0,1.12449828]
[1753276972457,0.04115271,118050.0,118040.0,1.12449828]
[1753276972666,0.04962362,118050.0,118040.0,1.12449828]
[1753276972922,0.04115271,118050.0,118040.0,1.12449828]
[1753276973654,0.03268187,118050.0,118040.0,1.12449828]
[1753276973866,0.01574048,118050.0,118040.0,1.12449828]
[1753276974084,0.01261048,118050.0,118040.0,1.12449828]
[1753276974298,0.002,118050.0,118040.0,1.15471828]
[1753276974779,0.002,118050.0,118040.0,1.54735266]
[1753276975204,0.002,118050.0,118040.0,1.88735266]
[1753276976283,0.001,118050.0,118040.0,1.88735266]
[1753276976714,0.11387675,118070.0,118060.0,0.19481531]
[1753276976927,0.11583675,118070.0,118060.0,0.78942699]
[1753276977145,0.11030728,118070.0,118060.0,0.78942699]
[1753276977357,0.11030728,118070.0,118060.0,0.79156699]
[1753276977358,0.10183802,118070.0,118060.0,0.79156699]
[1753276977541,0.10183802,118070.0,118060.0,0.81700899]
[1753276977755,0.08196,118070.0,118060.0,0.81700899]
[1753276977979,0.08,118070.0,118060.0,0.81700899]
[1753276978191,0.08,118070.0,118060.0,0.84654899]
[1753276978412,0.08,118070.0,118060.0,0.87404899]
[1753276978617,0.08,118070.0,118060.0,1.17294899]
[1753276979036,0.082,118070.0,118060.0,1.17294899]
[1753276979241,0.082,118070.0,118060.0,1.14544899]
[1753276979465,0.09893816,118070.0,118060.0,1.11590899]
[1753276979700,0.08396,118070.0,118060.0,1.11590899]
[1753276979913,0.082,118070.0,118060.0,1.11590899]
[1753276980401,0.09046897,118070.0,118060.0,1.11590899]
[1753276980636,0.37443399,118070.0,118060.0,0.1099193]
[1753276980896,0.72303021,118070.0,118060.0,0.14456]
[1753276981158,0.35749583,118070.0,118060.0,0.14456]
[1753276982115,0.35749583,118070.0,118060.0,0.31396538]
[1753276982376,0.72782977,118070.0,118060.0,0.33090583]
[1753276982599,0.71936051,118070.0,118060.0,0.31396538]
[1753276982815,0.71936051,118070.0,118060.0,0.14456]
[1753276983245,0.71936051,118070.0,118060.0,0.31396538]
[1753276983482,0.71936051,118070.0,118060.0,0.32243564]
[1753276983699,0.71936051,118070.0,118060.0,0.34784558]
[1753276983907,0.49046919,118070.0,118060.0,0.72398972]
[1753276984117,0.09893823,118070.0,118060.0,0.72398972]
[1753276984386,0.09046904,118070.0,118060.0,0.72398972]
[1753276984590,0.0904689,118070.0,118060.0,0.72398972]
[1753276984854,0.09893787,118070.0,118060.0,0.72398972]
[1753276985065,0.11587646,118070.0,118060.0,0.35845534]
[1753276985292,0.10740706,118070.0,118060.0,0.72398972]
[1753276985501,0.09893787,118070.0,118060.0,0.72398972]
[1753276985733,0.11587646,118070.0,118060.0,0.72398972]
[1753276985965,0.11587639,118070.0,118060.0,0.72398972]
[1753276986210,0.10740691,118070.0,118060.0,0.72398972]
[1753276986427,0.11587617,118070.0,118060.0,0.72398972]
[1753276986655,0.12434557,118070.0,118060.0,1.02288972]
[1753276987098,0.1158761,118070.0,118060.0,1.02288972]
[1753276987333,0.11587617,118070.0,118060.0,1.10736702]
[1753276987764,0.11587617,118070.0,118060.0,0.74183264]
[1753276988000,0.1243455,118070.0,118060.0,1.10736702]
[1753276988223,0.1263055,118070.0,118060.0,1.10736702]
[1753276988431,0.11783617,118070.0,118060.0,1.10736702]
[1753276988670,0.10936691,118070.0,118060.0,1.10736702]
[1753276988883,0.12630522,118070.0,118060.0,1.10736702]
[1753276989077,0.10936713,118070.0,118060.0,1.10736702]
[1753276989290,0.10740713,118070.0,118060.0,1.10736702]
[1753276989514,0.082,118070.0,118060.0,1.10736702]
[1753276989753,0.002,118070.0,118060.0,1.8713214]
[1753276990022,0.07273243,118110.0,118100.0,0.18628244]
[1753276990237,0.07763257,118110.0,118100.0,0.70472394]
[1753276990455,0.06916611,118110.0,118100.0,0.34765645]
[1753276990677,0.06965942,118110.0,118100.0,0.71319083]
[1753276990912,0.0781256,118110.0,118100.0,0.34765645]
[1753276991131,0.06965949,118110.0,118100.0,0.34765645]
[1753276991348,0.08659228,118110.0,118100.0,0.33072259]